fUSD/lending_fUSD_20250828
["ID","MTS","AMOUNT","RATE_DAILY","PERIOD"]
[381859785,1756374639544,-501.62006107,0.00017999,2]
[381859786,1756374639556,-502.02353358,0.00017999,2]
[381859787,1756374639565,-400.0,0.00017999,2]
[381859788,1756374639575,-270.97,0.00017999,2]
[381859789,1756374639584,-400.0,0.00017999,2]
[381859790,1756374639593,-210.46,0.00017999,2]
[381859791,1756374639602,-444.11,0.00017999,2]
[381859792,1756374639611,-400.0,0.00017999,2]
[381859793,1756374639622,-409.23768751,0.00017999,2]
[381859795,1756374639631,-237.11818562,0.00017999,2]
[381859796,1756374639640,-400.0,0.00017999,2]
[381859797,1756374639649,-401.81551672,0.00017999,2]
[381859798,1756374639658,-224.33,0.00017999,2]
[381859799,1756374639667,-400.0,0.00017999,2]
[381859800,1756374639676,-400.0,0.00017999,2]
[381859801,1756374639685,-413.6,0.00017999,2]
[381859802,1756374639695,-400.0,0.00017999,2]
[381859803,1756374639703,-400.0,0.00017999,2]
[381859804,1756374639713,-224.74,0.00017999,2]
[381859805,1756374639722,-303.19945479,0.00017999,2]
[381859806,1756374639731,-400.0,0.00017999,2]
[381859807,1756374639740,-400.0,0.00017999,2]
[381859808,1756374639749,-400.0,0.00017999,2]
[381859809,1756374639758,-255.99,0.00017999,2]
[381859810,1756374639767,-207.95,0.00017999,2]
[381859811,1756374639776,-370.98,0.00017999,2]
[381859812,1756374639786,-472.9,0.00017999,2]
[381859813,1756374639794,-400.0,0.00017999,2]
[381859815,1756374639803,-400.0,0.00017999,2]
[381859816,1756374639813,-400.0,0.00017999,2]
[381859818,1756374639822,-400.0,0.00017999,2]
[381859820,1756374639831,-235.67,0.00017999,2]
[381859822,1756374639840,-400.0,0.00017999,2]
[381859824,1756374639850,-164.59,0.00017999,2]
[381859826,1756374639862,-217.81,0.00017999,2]
[381859828,1756374639873,-414.50233804,0.00017999,2]
[381859830,1756374639883,-211.81,0.00017999,2]
[381859832,1756374639893,-316.05,0.00017999,2]
[381859834,1756374639903,-400.0,0.00017999,2]
[381859836,1756374639912,-256.74,0.00017999,2]
[381859838,1756374639921,-150.35765461,0.00017999,2]
[381859840,1756374639931,-500.0,0.00017999,2]
[381859842,1756374639941,-400.0,0.00017999,2]
[381859844,1756374639950,-150.0,0.00017999,2]
[381859846,1756374639960,-400.0,0.00017999,2]
[381859848,1756374639970,-150.0,0.00017999,2]
[381859850,1756374639979,-500.0,0.00017999,2]
[381859852,1756374639989,-150.0,0.00017999,2]
[381859854,1756374639998,-150.0,0.00017999,2]
[381859856,1756374640008,-150.0,0.00017999,2]
[381859858,1756374640018,-150.0,0.00017999,2]
[381859883,1756374640239,-150.0,0.00017999,2]
[381859886,1756374640251,-150.0,0.00017999,2]
[381859888,1756374640260,-150.0,0.00017999,2]
[381859890,1756374640270,-400.0,0.00017999,2]
[381859892,1756374640279,-400.0,0.00017999,2]
[381859894,1756374640288,-400.0,0.00017999,2]
[381859896,1756374640298,-329.3,0.00017999,2]
[381859897,1756374640307,-400.0,0.00017999,2]
[381859899,1756374640316,-400.0,0.00017999,2]
[381859901,1756374640326,-400.0,0.00017999,2]
[381859903,1756374640335,-150.0,0.00017999,2]
[381859905,1756374640345,-415.46,0.00017999,2]
[381859907,1756374640354,-400.0,0.00017999,2]
[381859909,1756374640363,-400.0,0.00017999,2]
[381859911,1756374640373,-400.0,0.00017999,2]
[381859913,1756374640382,-400.0,0.00017999,2]
[381859915,1756374640392,-400.0,0.00017999,2]
[381859917,1756374640401,-400.0,0.00017999,2]
[381859919,1756374640410,-400.0,0.00017999,2]
[381859921,1756374640419,-833.33,0.00017999,2]
[381859923,1756374640428,-400.0,0.00017999,2]
[381859925,1756374640437,-400.0,0.00017999,2]
[381859927,1756374640446,-400.0,0.00017999,2]
[381859929,1756374640455,-400.0,0.00017999,2]
[381859931,1756374640464,-400.0,0.00017999,2]
[381859933,1756374640473,-300.0,0.00017999,2]
[381859935,1756374640482,-400.0,0.00017999,2]
[381859937,1756374640491,-400.0,0.00017999,2]
[381859938,1756374640500,-400.0,0.00017999,2]
[381859940,1756374640509,-400.0,0.00017999,2]
[381859942,1756374640518,-2074.16,0.00017999,2]
[381859944,1756374640527,-400.0,0.00017999,2]
[381859946,1756374640536,-400.0,0.00017999,2]
[381859948,1756374640546,-1122.34,0.00017999,2]
[381859950,1756374640556,-522.74,0.00017999,2]
[381859952,1756374640565,-560.03,0.00017999,2]
[381859954,1756374640574,-400.0,0.00017999,2]
[381859956,1756374640583,-400.0,0.00017999,2]
[381859958,1756374640593,-400.0,0.00017999,2]
[381859960,1756374640602,-400.0,0.00017999,2]
[381859962,1756374640611,-400.0,0.00017999,2]
[381859964,1756374640620,-400.0,0.00017999,2]
[381859966,1756374640629,-400.0,0.00017999,2]
[381859968,1756374640639,-400.0,0.00017999,2]
[381859970,1756374640647,-275.45,0.00017999,2]
[381859972,1756374640656,-400.0,0.00017999,2]
[381859974,1756374640665,-400.0,0.00017999,2]
[381859976,1756374640675,-400.0,0.00017999,2]
[381859978,1756374640684,-423.69,0.00017999,2]
[381859980,1756374640693,-400.0,0.00017999,2]
[381859982,1756374640702,-296.52768289,0.00017999,2]
[381859984,1756374640711,-491.3,0.00017999,2]
[381859986,1756374640721,-400.0,0.00017999,2]
[381859988,1756374640730,-250.59760776,0.00017999,2]
[381859990,1756374640739,-400.0,0.00017999,2]
[381859992,1756374640748,-400.0,0.00017999,2]
[381859994,1756374640757,-400.0,0.00017999,2]
[381859996,1756374640766,-400.0,0.00017999,2]
[381859998,1756374640775,-400.0,0.00017999,2]
[381860000,1756374640784,-400.0,0.00017999,2]
[381860002,1756374640793,-400.0,0.00017999,2]
[381860004,1756374640803,-400.0,0.00017999,2]
[381860006,1756374640812,-400.0,0.00017999,2]
[381860008,1756374640821,-400.0,0.00017999,2]
[381860010,1756374640830,-400.0,0.00017999,2]
[381860012,1756374640839,-400.0,0.00017999,2]
[381860013,1756374640848,-400.0,0.00017999,2]
[381860016,1756374640860,-38621.11133355,0.00018,2]
[381860017,1756374640869,-5981220.733676,0.00018,2]
[381860019,1756374640878,-609.28,0.00018,2]
[381860021,1756374640888,-177.191041,0.00018,2]
[381860023,1756374640897,-2105.58172,0.00018,2]
[381860025,1756374640906,-300.0,0.00018082,2]
[381860027,1756374640915,-500.0,0.00018082,2]
[381860029,1756374640924,-250.0,0.00018082,2]
[381860031,1756374640933,-251.0,0.00018082,2]
[381860033,1756374640942,-1000.0,0.00018082,3]
[381860035,1756374640951,-300.0,0.00018082,2]
[381860037,1756374640960,-250.0,0.00018082,2]
[381860039,1756374640970,-1680.0,0.00018084,2]
[381860041,1756374640979,-150.0,0.0001812,2]
[381860043,1756374640988,-250.0,0.00018131,2]
[381860045,1756374640998,-400.0,0.00018173,2]
[381860047,1756374641007,-400.0,0.00018173,2]
[381860049,1756374641017,-400.0,0.00018173,2]
[381860051,1756374641026,-400.0,0.00018173,2]
[381860053,1756374641036,-500.0,0.00018174,6]
[381860055,1756374641045,-150.0,0.00018174,6]
[381860057,1756374641054,-500.0,0.00018174,2]
[381860059,1756374641063,-942.0,0.00018174,6]
[381860061,1756374641073,-500.0,0.00018174,6]
[381860063,1756374641083,-150.0,0.00018174,6]
[381860065,1756374641092,-150.0,0.00018174,6]
[381860067,1756374641101,-500.0,0.00018174,2]
[381860069,1756374641110,-500.0,0.00018174,6]
[381860071,1756374641119,-500.0,0.00018174,6]
[381860073,1756374641128,-500.0,0.00018174,6]
[381860075,1756374641137,-275.25933414,0.00018174,6]
[381860077,1756374641147,-150.0,0.00018174,6]
[381860079,1756374641156,-150.0,0.00018174,6]
[381860081,1756374641165,-500.0,0.00018174,6]
[381860083,1756374641174,-300.0,0.00018174,2]
[381860085,1756374641183,-500.0,0.00018174,6]
[381860087,1756374641193,-390.14083791,0.00018174,6]
[381860089,1756374641202,-357.7576891,0.00018174,6]
[381860091,1756374641212,-500.0,0.00018174,6]
[381860093,1756374641221,-2105.58172,0.0001823,2]
[381860095,1756374641230,-151.0,0.00018236,2]
[381860097,1756374641239,-151.0,0.0001824,2]
[381860099,1756374641248,-151.0,0.00018243,2]
[381860101,1756374641257,-500.0,0.00018265,2]
[381860103,1756374641267,-400.0,0.00018272,2]
[381860105,1756374641276,-447.72,0.00018272,2]
[381860107,1756374641285,-625.0,0.00018272,2]
[381860109,1756374641295,-400.0,0.00018272,2]
[381860111,1756374641304,-400.0,0.00018272,2]
[381860113,1756374641314,-400.0,0.00018272,2]
[381860115,1756374641324,-400.0,0.00018272,2]
[381860117,1756374641333,-400.0,0.00018272,2]
[381860119,1756374641343,-537.78557504,0.00018272,2]
[381860121,1756374641353,-300.0,0.00018272,2]
[381860123,1756374641362,-609.89327915,0.00018273,2]
[381860125,1756374641373,-150.0,0.00018273,2]
[381860127,1756374641382,-500.0,0.00018273,2]
[381860129,1756374641391,-150.0,0.00018273,2]
[381860131,1756374641401,-150.0,0.00018273,2]
[381860133,1756374641411,-206.88509526,0.00018273,2]
[381860135,1756374641420,-150.0,0.00018273,2]
[381860137,1756374641430,-150.45272974,0.00018273,2]
[381860139,1756374641439,-201.76080023,0.00018273,2]
[381860141,1756374641448,-150.0,0.00018273,2]
[381860143,1756374641458,-201.09,0.00018273,2]
[381860145,1756374641467,-913.32,0.00018273,2]
[381860147,1756374641476,-400.0,0.00018273,2]
[381860149,1756374641485,-400.0,0.00018273,2]
[381860151,1756374641495,-302.8874995,0.00018273,2]
[381860153,1756374641504,-191.2,0.00018273,2]
[381860155,1756374641514,-500.62,0.00018273,2]
[381860157,1756374641523,-514.50739871,0.00018273,2]
[381860159,1756374641532,-400.0,0.00018273,2]
[381860161,1756374641542,-400.0,0.00018273,2]
[381860163,1756374641551,-215.41,0.00018273,2]
[381860165,1756374641561,-461.94,0.00018273,2]
[381860167,1756374641570,-400.0,0.00018273,2]
[381860169,1756374641579,-400.0,0.00018273,2]
[381860171,1756374641588,-400.0,0.00018273,2]
[381860173,1756374641597,-400.0,0.00018273,2]
[381860175,1756374641606,-400.0,0.00018273,2]
[381860177,1756374641615,-400.0,0.00018273,2]
[381860179,1756374641625,-388.06499729,0.00018273,2]
[381860181,1756374641634,-400.0,0.00018273,2]
[381860183,1756374641644,-400.0,0.00018273,2]
[381860185,1756374641653,-400.0,0.00018273,2]
[381860187,1756374641662,-400.0,0.00018273,2]
[381860189,1756374641671,-833.33,0.00018273,2]
[381860191,1756374641680,-400.0,0.00018273,2]
[381860193,1756374641690,-400.0,0.00018273,2]
[381860195,1756374641699,-400.0,0.00018273,2]
[381860197,1756374641708,-400.0,0.00018273,2]
[381860199,1756374641718,-400.0,0.00018273,2]
[381860201,1756374641727,-400.0,0.00018273,2]
[381860203,1756374641735,-2074.16,0.00018273,2]
[381860205,1756374641745,-400.0,0.00018273,2]
[381860207,1756374641754,-1122.34,0.00018273,2]
[381860209,1756374641762,-560.03,0.00018273,2]
[381860211,1756374641771,-400.0,0.00018273,2]
[381860213,1756374641780,-400.0,0.00018273,2]
[381860215,1756374641789,-400.0,0.00018273,2]
[381860217,1756374641798,-545.84,0.00018273,2]
[381860219,1756374641807,-400.0,0.00018273,2]
[381860221,1756374641815,-446.11,0.00018273,2]
[381860223,1756374641824,-400.0,0.00018273,2]
[381860225,1756374641834,-423.69,0.00018273,2]
[381860227,1756374641843,-400.0,0.00018273,2]
[381860229,1756374641852,-400.0,0.00018273,2]
[381860230,1756374641865,-522.07,0.00018273,2]
[381860232,1756374641876,-400.0,0.00018273,2]
[381860234,1756374641885,-400.0,0.00018273,2]
[381860236,1756374641895,-400.0,0.00018273,2]
[381860238,1756374641904,-400.0,0.00018273,2]
[381860240,1756374641914,-400.0,0.00018273,2]
[381860242,1756374641923,-226.72,0.00018281,2]
[381860244,1756374641934,-18591.0,0.00018356,2]
[381860246,1756374641943,-416.68051754,0.00018421,2]
[381860248,1756374641952,-400.0,0.00018447,2]
[381860250,1756374641961,-400.0,0.00018447,2]
[381860252,1756374641971,-400.0,0.00018447,2]
[381860254,1756374641979,-400.0,0.00018447,2]
[381860256,1756374641990,-500.0,0.00018448,6]
[381860258,1756374641999,-202.89796127,0.00018448,6]
[381860260,1756374642009,-500.0,0.00018448,2]
[381860262,1756374642018,-942.0,0.00018448,6]
[381860264,1756374642028,-500.0,0.00018448,6]
[381860266,1756374642037,-150.0,0.00018448,6]
[381860268,1756374642046,-150.0,0.00018448,6]
[381860270,1756374642056,-500.0,0.00018448,2]
[381860272,1756374642065,-500.0,0.00018448,6]
[381860274,1756374642075,-374.88718997,0.00018448,6]
[381860276,1756374642084,-500.0,0.00018448,6]
[381860278,1756374642093,-150.0,0.00018448,6]
[381860280,1756374642103,-282.42877466,0.00018448,6]
[381860282,1756374642113,-500.0,0.00018448,6]
[381860284,1756374642124,-300.0,0.00018448,2]
[381860286,1756374642133,-500.0,0.00018448,6]
[381860288,1756374642143,-500.0,0.00018448,6]
[381860290,1756374642153,-377.62947116,0.00018521,2]
[381860292,1756374642162,-244.22038366,0.00018521,2]
[381860294,1756374642171,-1000.0,0.00018521,2]
[381860296,1756374642180,-161.61662079,0.00018521,2]
[381860298,1756374642190,-1020.91011504,0.00018521,2]
[381860300,1756374642199,-159.81,0.00018546,2]
[381860302,1756374642208,-447.72,0.00018546,2]
[381860304,1756374642218,-625.0,0.00018546,2]
[381860306,1756374642227,-400.0,0.00018546,2]
[381860308,1756374642239,-300.0,0.00018546,2]
[381860310,1756374642248,-400.0,0.00018546,2]
[381860312,1756374642257,-400.0,0.00018546,2]
[381860314,1756374642267,-400.0,0.00018546,2]
[381860316,1756374642277,-400.0,0.00018546,2]
[381860318,1756374642286,-150.0,0.00018547,2]
[381860320,1756374642295,-500.0,0.00018547,2]
[381860322,1756374642304,-200.0,0.00018547,2]
[381860324,1756374642314,-203.87608793,0.00018547,2]
[381860326,1756374642323,-150.0,0.00018547,2]
[381860328,1756374642332,-913.32,0.00018547,2]
[381860330,1756374642343,-400.0,0.00018547,2]
[381860332,1756374642351,-400.82601308,0.00018547,2]
[381860334,1756374642362,-500.62,0.00018547,2]
[381860336,1756374642372,-400.0,0.00018547,2]
[381860338,1756374642381,-400.0,0.00018547,2]
[381860340,1756374642390,-400.0,0.00018547,2]
[381860342,1756374642400,-400.0,0.00018547,2]
[381860344,1756374642409,-400.0,0.00018547,2]
[381860346,1756374642419,-400.0,0.00018547,2]
[381860348,1756374642428,-400.0,0.00018547,2]
[381860350,1756374642438,-400.0,0.00018547,2]
[381860352,1756374642447,-400.0,0.00018547,2]
[381860354,1756374642456,-833.33,0.00018547,2]
[381860356,1756374642466,-400.0,0.00018547,2]
[381860358,1756374642475,-400.0,0.00018547,2]
[381860360,1756374642485,-400.0,0.00018547,2]
[381860362,1756374642494,-399.96,0.00018547,2]
[381860364,1756374642503,-280.46865455,0.00018547,2]
[381860366,1756374642513,-400.0,0.00018547,2]
[381860368,1756374642522,-2074.16,0.00018547,2]
[381860370,1756374642531,-400.0,0.00018547,2]
[381860372,1756374642541,-1122.34,0.00018547,2]
[381860374,1756374642551,-560.03,0.00018547,2]
[381860376,1756374642560,-400.0,0.00018547,2]
[381860378,1756374642569,-400.0,0.00018547,2]
[381860380,1756374642578,-400.0,0.00018547,2]
[381860382,1756374642587,-400.0,0.00018547,2]
[381860384,1756374642597,-423.69,0.00018547,2]
[381860386,1756374642606,-400.0,0.00018547,2]
[381860388,1756374642615,-400.0,0.00018547,2]
[381860390,1756374642624,-400.0,0.00018547,2]
[381860392,1756374642634,-400.0,0.00018547,2]
[381860394,1756374642643,-185.2,0.00018547,2]
[381860396,1756374642652,-400.0,0.00018547,2]
[381860398,1756374642662,-477.73,0.00018547,2]
[381860400,1756374642671,-400.0,0.00018721,2]
[381860402,1756374642680,-400.0,0.00018721,2]
[381860404,1756374642688,-400.0,0.00018721,2]
[381860406,1756374642697,-500.0,0.00018722,6]
[381860407,1756374642706,-500.0,0.00018722,2]
[381860409,1756374642715,-942.0,0.00018722,6]
[381860411,1756374642724,-500.0,0.00018722,6]
[381860413,1756374642734,-150.0,0.00018722,6]
[381860415,1756374642743,-150.0,0.00018722,6]
[381860417,1756374642752,-500.0,0.00018722,6]
[381860419,1756374642761,-518.61294035,0.00018722,6]
[381860421,1756374642770,-300.0,0.00018722,6]
[381860424,1756374642779,-300.0,0.00018722,2]
[381860426,1756374642789,-500.0,0.00018722,6]
[381860428,1756374642798,-500.0,0.00018722,6]
[381860430,1756374642807,-1000.0,0.00018722,2]
[381860432,1756374642816,-2105.58172,0.0001873,2]
[381860434,1756374642826,-252.67,0.00018767,2]
[381860436,1756374642836,-935.0,0.00018797,2]
[381860437,1756374642845,-402.44710717,0.00018799,2]
[381860438,1756374642857,-150.86,0.000188,2]
[381860439,1756374642866,-150.86,0.000188,2]
[381860440,1756374642875,-150.86,0.000188,2]
[381860441,1756374642884,-150.86,0.000188,2]
[381860442,1756374642894,-150.86,0.000188,2]
[381860443,1756374642904,-150.86,0.000188,2]
[381860444,1756374642913,-150.86,0.000188,2]
[381860445,1756374642922,-150.86,0.000188,2]
[381860446,1756374642931,-150.86,0.000188,2]
[381860447,1756374642941,-150.86,0.000188,2]
[381860448,1756374642950,-150.86,0.000188,2]
[381860449,1756374642961,-150.86,0.000188,2]
[381860450,1756374642970,-150.86,0.000188,2]
[381860451,1756374642979,-150.86,0.000188,2]
[381860452,1756374642988,-150.86,0.000188,2]
[381860454,1756374642998,-150.86,0.000188,2]
[381860456,1756374643007,-150.86,0.000188,2]
[381860458,1756374643017,-150.86,0.000188,2]
[381860460,1756374643026,-150.86,0.000188,2]
[381860462,1756374643035,-150.86,0.000188,2]
[381860464,1756374643044,-150.86,0.000188,2]
[381860466,1756374643054,-150.86,0.000188,2]
[381860468,1756374643063,-150.86,0.000188,2]
[381860470,1756374643074,-150.86,0.000188,2]
[381860472,1756374643084,-150.86,0.000188,2]
[381860474,1756374643093,-150.86,0.000188,2]
[381860476,1756374643102,-150.86,0.000188,2]
[381860478,1756374643112,-150.86,0.000188,2]
[381860480,1756374643122,-150.86,0.000188,2]
[381860482,1756374643131,-150.86,0.000188,2]
[381860484,1756374643141,-150.86,0.000188,2]
[381860486,1756374643152,-150.86,0.000188,2]
[381860488,1756374643161,-150.86,0.000188,2]
[381860490,1756374643171,-150.86,0.000188,2]
[381860492,1756374643180,-150.86,0.000188,2]
[381860494,1756374643190,-150.86,0.000188,2]
[381860496,1756374643200,-150.86,0.000188,2]
[381860498,1756374643209,-150.86,0.000188,2]
[381860500,1756374643218,-150.86,0.000188,2]
[381860502,1756374643227,-150.86,0.000188,2]
[381860504,1756374643237,-150.86,0.000188,2]
[381860506,1756374643246,-150.86,0.000188,2]
[381860508,1756374643255,-150.86,0.000188,2]
[381860510,1756374643264,-150.86,0.000188,2]
[381860512,1756374643274,-150.86,0.000188,2]
[381860514,1756374643283,-150.86,0.000188,2]
[381860516,1756374643292,-150.86,0.000188,2]
[381860518,1756374643301,-150.86,0.000188,2]
[381860520,1756374643311,-150.86,0.000188,2]
[381860522,1756374643320,-150.86,0.000188,2]
[381860524,1756374643329,-150.86,0.000188,2]
[381860526,1756374643338,-150.86,0.000188,2]
[381860528,1756374643348,-150.86,0.000188,2]
[381860531,1756374643357,-150.86,0.000188,2]
[381860533,1756374643367,-150.86,0.000188,2]
[381860535,1756374643379,-150.86,0.000188,2]
[381860537,1756374643392,-150.86,0.000188,2]
[381860539,1756374643402,-150.86,0.000188,2]
[381860541,1756374643411,-150.86,0.000188,2]
[381860543,1756374643421,-150.86,0.000188,2]
[381860545,1756374643430,-150.86,0.000188,2]
[381860547,1756374643440,-150.86,0.000188,2]
[381860549,1756374643449,-150.86,0.000188,2]
[381860551,1756374643459,-150.86,0.000188,2]
[381860553,1756374643468,-150.86,0.000188,2]
[381860555,1756374643478,-150.86,0.000188,2]
[381860557,1756374643487,-150.86,0.000188,2]
[381860559,1756374643497,-150.86,0.000188,2]
[381860561,1756374643506,-150.86,0.000188,2]
[381860563,1756374643515,-150.86,0.000188,2]
[381860565,1756374643525,-150.86,0.000188,2]
[381860567,1756374643534,-150.86,0.000188,2]
[381860569,1756374643543,-150.86,0.000188,2]
[381860571,1756374643552,-150.86,0.000188,2]
[381860573,1756374643561,-150.86,0.000188,2]
[381860575,1756374643571,-150.86,0.000188,2]
[381860577,1756374643581,-150.86,0.000188,2]
[381860579,1756374643590,-150.86,0.000188,2]
[381860581,1756374643601,-150.86,0.000188,2]
[381860583,1756374643611,-150.86,0.000188,2]
[381860585,1756374643622,-150.86,0.000188,2]
[381860587,1756374643631,-150.86,0.000188,2]
[381860589,1756374643640,-150.86,0.000188,2]
[381860591,1756374643649,-150.86,0.000188,2]
[381860593,1756374643659,-447.72,0.0001882,2]
[381860595,1756374643668,-625.0,0.0001882,2]
[381860597,1756374643678,-400.0,0.0001882,2]
[381860599,1756374643687,-400.0,0.0001882,2]
[381860600,1756374643696,-400.0,0.0001882,2]
[381860602,1756374643705,-400.0,0.0001882,2]
[381860604,1756374643715,-400.0,0.0001882,2]
[381860606,1756374643724,-150.0,0.00018821,2]
[381860608,1756374643734,-150.0,0.00018821,2]
[381860610,1756374643743,-913.32,0.00018821,2]
[381860612,1756374643753,-400.0,0.00018821,2]
[381860614,1756374643763,-500.62,0.00018821,2]
[381860616,1756374643772,-400.0,0.00018821,2]
[381860618,1756374643781,-400.0,0.00018821,2]
[381860620,1756374643791,-400.0,0.00018821,2]
[381860622,1756374643800,-400.0,0.00018821,2]
[381860624,1756374643809,-400.0,0.00018821,2]
[381860626,1756374643818,-400.0,0.00018821,2]
[381860628,1756374643827,-400.0,0.00018821,2]
[381860630,1756374643837,-400.0,0.00018821,2]
[381860632,1756374643846,-400.0,0.00018821,2]
[381860634,1756374643857,-833.33,0.00018821,2]
[381860636,1756374643867,-400.0,0.00018821,2]
[381860638,1756374643877,-400.0,0.00018821,2]
[381860640,1756374643887,-400.0,0.00018821,2]
[381860642,1756374643896,-400.0,0.00018821,2]
[381860644,1756374643907,-2074.16,0.00018821,2]
[381860646,1756374643916,-400.0,0.00018821,2]
[381860648,1756374643926,-1122.34,0.00018821,2]
[381860650,1756374643936,-560.03,0.00018821,2]
[381860652,1756374643946,-400.0,0.00018821,2]
[381860654,1756374643955,-400.0,0.00018821,2]
[381860656,1756374643965,-400.0,0.00018821,2]
[381860658,1756374643975,-400.0,0.00018821,2]
[381860660,1756374643985,-423.69,0.00018821,2]
[381860662,1756374643995,-400.0,0.00018821,2]
[381860664,1756374644004,-400.0,0.00018821,2]
[381860666,1756374644013,-400.0,0.00018821,2]
[381860668,1756374644024,-400.0,0.00018821,2]
[381860670,1756374644033,-207.75152454,0.00018821,2]
[381860672,1756374644043,-214.58883188,0.000189,2]
[381860674,1756374644058,-603.38065453,0.00018949,2]
[381860692,1756374644255,-400.0,0.00018995,2]
[381860694,1756374644265,-400.0,0.00018995,2]
[381860696,1756374644275,-400.0,0.00018995,2]
[381860698,1756374644285,-500.0,0.00018996,6]
[381860701,1756374644298,-500.0,0.00018996,2]
[381860702,1756374644309,-942.0,0.00018996,6]
[381860704,1756374644318,-500.0,0.00018996,6]
[381860706,1756374644329,-238.0,0.00018996,6]
[381860708,1756374644338,-150.0,0.00018996,6]
[381860710,1756374644347,-500.0,0.00018996,6]
[381860712,1756374644358,-153.14383106,0.00018996,2]
[381860715,1756374644368,-500.0,0.00018996,6]
[381860717,1756374644379,-500.0,0.00018996,6]
[381860718,1756374644388,-425.23909762,0.00019,2]
[381860720,1756374644397,-425.23909762,0.00019,2]
[381860722,1756374644407,-1500.0,0.00019068,2]
[381860724,1756374644416,-447.72,0.00019094,2]
[381860726,1756374644426,-625.0,0.00019094,2]
[381860728,1756374644436,-400.0,0.00019094,2]
[381860730,1756374644445,-400.0,0.00019094,2]
[381860732,1756374644455,-400.0,0.00019094,2]
[381860734,1756374644464,-400.0,0.00019094,2]
[381860736,1756374644474,-150.0,0.00019095,2]
[381860738,1756374644483,-150.0,0.00019095,2]
[381860740,1756374644492,-913.32,0.00019095,2]
[381860742,1756374644501,-400.0,0.00019095,2]
[381860744,1756374644511,-500.62,0.00019095,2]
[381860746,1756374644521,-400.0,0.00019095,2]
[381860748,1756374644530,-400.0,0.00019095,2]
[381860750,1756374644539,-400.0,0.00019095,2]
[381860752,1756374644548,-400.0,0.00019095,2]
[381860754,1756374644558,-400.0,0.00019095,2]
[381860756,1756374644567,-400.0,0.00019095,2]
[381860758,1756374644578,-833.33,0.00019095,2]
[381860760,1756374644588,-224.55327699,0.00019095,2]
[381860762,1756374644597,-400.0,0.00019095,2]
[381860764,1756374644607,-400.0,0.00019095,2]
[381860766,1756374644616,-2074.16,0.00019095,2]
[381860768,1756374644626,-400.0,0.00019095,2]
[381860770,1756374644635,-1122.34,0.00019095,2]
[381860772,1756374644645,-560.03,0.00019095,2]
[381860774,1756374644654,-400.0,0.00019095,2]
[381860776,1756374644664,-400.0,0.00019095,2]